{"text_format":"1","workbook":"xlsx","n_sheets":3,"sheets":["Vstupné údaje","Úvodná strana","Priloha"],"not_rendered":{"charts":0,"images":2,"macros":1,"external_links":0,"defined_names":0,"comments":0,"pivot_tables":0},"unopened":[],"bounds":{"document_bytes":16777216,"sheet_cells":100000,"rows_first":2000,"rows_last":500,"rows_between":2000,"halvings":0,"cell_chars":16384,"cell_head_chars":4096},"cells_cut":0,"cells_raw":0,"read":"whole","date_system":"1900"}

{"sheet":"Vstupné údaje","index":0,"n_rows":100,"n_cols":16,"rows_kept":100,"cut":false,"hidden":true,"merged":[]}
["Napäťová úroveň","Typ skúšaného zariadenia","Typ skúšky","Čas spolu [hod]","Čas SCADA","Čas TOaA","Čas TSpES","Dodávateľ RISu","Technik dodávateľa","Technik RSS","Testovací scenár",null,"kom","ZSD","Scada"]
["110kV/22kV","Dynamické skúšky","Dynamické skúšky",8,8,8,null,8,0,0,19,null,"J. Špilka ","J. Beragg","R. Peško "]
["110kV","110kV - vyvod","Základná kontrola",1,1,0.5,1,0,0,0,2,null,"J. Hajduk ","R. Peško ","R. Rehora "]
[null,null,"Verifikácia dát",{"$f":"MAX(E4:G4)","v":1},1,0.5,0.5,{"$f":"D4","v":1},{"$f":"D4","v":1},0,2,null,null,"R. Rehora ","J. Páleník "]
[null,null,"Skúška ochrán",{"$f":"MAX(E5:G5)","v":6},6,6,1,{"$f":"D5","v":6},{"$f":"D5","v":6},0,2,null,null,"J. Páleník ","M. Mošať"]
[null,null,"Verifikácia meraní",{"$f":"MAX(E6:G6)","v":1},1,1,0,{"$f":"D6","v":1},{"$f":"D6","v":1},0,2,null,null,"J. Špilka "]
[null,null,"Skúška povelovania",{"$f":"MAX(E7:G7)","v":2},2,0,1,{"$f":"D7","v":2},{"$f":"D7","v":2},0,2,null,null,"J. Hajduk "]
[null,null,"Smerovanie ochrán",1,1,1,null,null,1,null,"-",null,null,"M. Wisla "]
["110kV","110kV - KSP","Základná kontrola",1,1,0.5,1,0,0,0,3,null,null,"F. Špilka "]
[null,null,"Verifikácia dát",{"$f":"MAX(E10:G10)","v":1},1,0.5,0.5,{"$f":"D10","v":1},{"$f":"D10","v":1},0,3,null,null,"R. Tesár"]
[null,null,"Skúška ochrán",{"$f":"MAX(E11:G11)","v":6},6,6,1,{"$f":"D11","v":6},{"$f":"D11","v":6},0,3,null,null,"M. Mošať"]
[null,null,"Verifikácia meraní",{"$f":"MAX(E12:G12)","v":1},1,1,0,{"$f":"D12","v":1},{"$f":"D12","v":1},0,3,null,null,"R. Mikula "]
[null,null,"Skúška povelovania",{"$f":"MAX(E13:G13)","v":2},2,0,1,{"$f":"D13","v":2},{"$f":"D13","v":2},0,3,null,null,"L. Virág"]
[null,null,"Smerovanie ochrán",1,1,1,null,null,1,null,"-",null,null,"J. Kapusta"]
["110kV","110kV - SPP","Základná kontrola",1,1,0.5,1,0,0,0,4,null,null,"V. Krajčovič"]
[null,null,"Verifikácia dát",{"$f":"MAX(E16:G16)","v":1},1,0.5,0.5,{"$f":"D16","v":1},{"$f":"D16","v":1},0,4]
[null,null,"Skúška ochrán",{"$f":"MAX(E17:G17)","v":6},6,6,1,{"$f":"D17","v":6},{"$f":"D17","v":6},0,4]
[null,null,"Verifikácia meraní",{"$f":"MAX(E18:G18)","v":1},1,1,0,{"$f":"D18","v":1},{"$f":"D18","v":1},0,4]
[null,null,"Skúška povelovania",{"$f":"MAX(E19:G19)","v":2},2,0,1,{"$f":"D19","v":2},{"$f":"D19","v":2},0,4]
[null,null,"Smerovanie ochrán",1,1,1,null,null,1,null,"-"]
["110kV","110kV - trafo","Základná kontrola",1,1,0.5,1,0,0,0,5]
[null,null,"Verifikácia dát",{"$f":"MAX(E22:G22)","v":1},1,0.5,0.5,{"$f":"D22","v":1},{"$f":"D22","v":1},0,5]
[null,null,"Skúška ochrán",6,6,6,1,{"$f":"D23","v":6},{"$f":"D23","v":6},0,5]
[null,null,"Verifikácia meraní",1,1,1,0,{"$f":"D24","v":1},{"$f":"D24","v":1},0,5]
[null,null,"Skúška povelovania",2,2,0,1,{"$f":"D25","v":2},{"$f":"D25","v":2},0,5]
[null,null,"Smerovanie ochrán",1,1,1,null,null,1,null,"-"]
["110kV/22kV","Regulácia trafa","Základná kontrola",1,1,1,1,0,0,0,6]
[null,null,"Verifikácia dát",2,2,2,0,{"$f":"D28","v":2},{"$f":"D28","v":2},0,6]
[null,null,"Verifikácia meraní",1,1,1,1,1,1,0,6]
[null,null,"Skúška povelovania",{"$f":"MAX(E30:G30)","v":2},2,0,2,{"$f":"D30","v":2},{"$f":"D30","v":2},0,6]
[null,null,"Kontrola automatiky",3,3,3,3,3,3,0,6]
[]
["110kV/22kV","Regulácia tlmivky","Regulacia tlmivky",8,8,2,8,8,8,0,7]
["22kV","22kV - vyvod","Základná kontrola",1,0.5,0.5,1,0,0,0,8]
[null,null,"Verifikácia dát",0.5,0.5,0.5,0,0.5,0.5,0,8]
[null,null,"Skúška ochrán",3,3,3,0,3,3,0,8]
[null,null,"Verifikácia meraní",1,1,1,0,1,1,0,8]
[null,null,"Skúška povelovania",1,1,1,1,1,1,0,8]
[null,null,"Smerovanie ochrán",1,1,1,null,null,1,null,"-"]
["22kV","22kV - trafo","Základná kontrola",1,0.5,0.5,1,0,0,0,9]
[null,null,"Verifikácia dát",0.5,0.5,0.5,0,0.5,0.5,0,9]
[null,null,"Skúška ochrán",3,3,3,0,3,3,0,9]
[null,null,"Verifikácia meraní",1,1,1,0,1,1,0,9]
[null,null,"Skúška povelovania",1,1,1,1,1,1,0,9]
[null,null,"Smerovanie ochrán",1,1,1,null,null,1,null,"-"]
["22kV","22kV - vyvod + trafo VLSP","Základná kontrola",1,0.5,0.5,1,0,0,0,10]
[null,null,"Verifikácia dát",0.5,0.5,0.5,0,0.5,0.5,0,10]
[null,null,"Skúška ochrán",3,3,3,0,3,3,0,10]
[null,null,"Verifikácia meraní",1,1,1,0,1,1,0,10]
[null,null,"Skúška povelovania",1,1,1,1,1,1,0,10]
[null,null,"Smerovanie ochrán",1,1,1,null,null,1,null,"-"]
["22kV","22kV - trafo VLSP","Základná kontrola",1,0.5,0.5,1,0,0,0,11]
[null,null,"Verifikácia dát",0.5,0.5,0.5,0,0.5,0.5,0,11]
[null,null,"Skúška ochrán",3,3,3,0,3,3,0,11]
[null,null,"Verifikácia meraní",1,1,1,0,1,1,0,11]
[null,null,"Skúška povelovania",1,1,1,1,1,1,0,11]
[]
["22kV","22kV - Meranie a DMS","Základná kontrola",1,0.5,0.5,1,0,0,0,12]
[null,null,"Verifikácia dát",0.5,0.5,0.5,0,0.5,0.5,0,12]
[null,null,"Skúška ochrán",3,3,3,0,3,3,0,12]
[null,null,"Verifikácia meraní",1,1,1,0,1,1,0,12]
[null,null,"Skúška povelovania",1,1,1,1,1,1,0,12]
[]
["22kV","22kV - SP","Základná kontrola",1,0.5,0.5,1,0,0,0,13]
[null,null,"Verifikácia dát",0.5,0.5,0.5,0,0.5,0.5,0,13]
[null,null,"Skúška ochrán",3,3,3,0,3,3,0,13]
[null,null,"Verifikácia meraní",1,1,1,0,1,1,0,13]
[null,null,"Skúška povelovania",1,1,1,1,1,1,0,13]
[null,null,"Smerovanie ochrán",1,1,1,null,null,1,null,"-"]
["22kV","22kV - SPP","Základná kontrola",1,0.5,0.5,1,0,0,0,14]
[null,null,"Verifikácia dát",0.5,0.5,0.5,0,0.5,0.5,0,14]
[null,null,"Skúška ochrán",3,3,3,0,3,3,0,14]
[null,null,"Verifikácia meraní",1,1,1,0,1,1,0,14]
[null,null,"Skúška povelovania",{"$f":"MAX(E74:G74)","v":1},1,1,1,1,1,0,14]
[null,null,"Smerovanie ochrán",1,1,1,null,null,1,null,"-"]
["22kV/0,4kV","Vlastna spotreba","Základná kontrola",{"$f":"MAX(E76:G76)","v":2},2,2,1,2,2,0,15]
[null,null,"Verifikácia dát",{"$f":"MAX(E77:G77)","v":2},2,2,0,2,2,0,15]
["22kV/0,4kV","Automaticky zaskok","Verifikácia dát a AZ",8,8,8,8,8,8,0,16]
["110kV/22kV","Systemove blokady","Skúška BP",8,8,0,8,8,8,0,17]
["110kV","Sekvencie","Lokálne sekvencie",{"$f":"MAX(E80:G80)","v":8},8,0,8,8,8,0,18]
[null,null,"Globálne sekvencie",8,8,0,8,8,8,0,18]
["22kV","DOTS","DOTS skúšky",8,8,0,0,8,8,8,20]
["22kV","DOUO","DOUO skúšky",8,8,0,0,8,8,8,21]
["22kV","Zdroje (MVE, KGJ, FTVE,..)","Zdroje skúšky",8,8,0,0,8,8,8,22]
["110kV","ROP","Vývod",0.5,0.5,0.5,0,0.5,0,0,"-"]
[null,null,"Centrála",1,1,1,0,1,0,0,"-"]
["110kV/22kV","EPS","Iné",1,1,null,null,1,1,null,29]
["110kV/22kV","PSN","Iné",1,1,null,null,1,1,null,30]
["110kV/22kV","HDO","Iné",1,1,null,null,1,1,null,31]
[null,null,null,11]
[]
[]
[]
[]
[]
[]
[]
[]
[]
["Názov ES","Názov zariadenia",1,"Meno Priezvisko","číslo",0,0,0,0,"TOaA","TS ","RIS","Technik dodávateľa","Technik RSS",null,"Dodávateľ"]

{"sheet":"Úvodná strana","index":1,"n_rows":47,"n_cols":5,"rows_kept":47,"cut":false,"hidden":false,"merged":[[32,1,32,4],[36,1,36,4],[0,1,0,2],[6,1,6,4],[12,1,12,4],[20,1,20,4],[24,1,24,4],[28,1,28,4],[16,1,16,4]]}
[null,"Program funkčných skúšok - príloha k VČP"]
[]
[null,"Názov Elektrickej stanice:"]
[]
[null,"Dátum Funkčných skúšok:"]
[]
[null,"Zodpovedná osoba za dodávateľa"]
[null,"Meno a Priezvisko:",null,"Podpis:"]
[]
[null,"Telefon:"]
[]
[]
[null," Zodpovedná osoba za kontrolu a prevzatie podkladov pre zakreslenie do SCADA*"]
[null,"Meno a Priezvisko:",null,"Podpis:"]
[]
[]
[null,"Zodpovedná osoba za výkon funkčných skúšok za tím SCADA*"]
[null,"Meno a Priezvisko:",null,"Podpis:"]
[]
[]
[null,"Zodpovedná osoba za výkon funkčných skúšok za TOaA*"]
[null,"Meno a Priezvisko:",null,"Podpis:"]
[null,null,null,null," "]
[]
[null,"Zodpovedná osoba za výkon funkčných skúšok za TSpES*"]
[null,"Meno a Priezvisko:",null,"Podpis:"]
[null,null,null,null," "]
[]
[null,"Dodávatel RIS"]
[null,"Meno a Priezvisko:",null,"Podpis:"]
[null,null,null,null," "]
[]
[null,"Technik dodávateľa"]
[null,"Meno a Priezvisko:",null,"Podpis:"]
[null,null,null,null," "]
[]
[null,"Technik RSS*"]
[null,"Meno a Priezvisko:","Technik RSS","Podpis:"]
[null,null,null,null," "]
[]
[null,"*v zastúpení môže podpísať aj priamy vedúci"]
[]
[null,"Západoslovenská distribučná, a.s.","Kontakt:"]
[null,"Čulenova 6, 816 47 Bratislava","Doručovacia adresa: Západoslovenská distribučná, a.s., P.O.BOX 292, 810 00 Bratislava 1"]
[null,"IČO: 36361518, DIČ: 2022189048, Spoločnosť je zapísaná","Zákaznícka linka 0850 333 999, pracovné dni 7.00-19.00, F +421-(0)-37-77 63 193"]
[null,"V OR Okresného súdu Bratislava I, oddiel Sa, v. č. 3819/B","Poruchová linka 0850 111 567, nonstop (bezplatný hovor pre volania z pevnej aj mobilnej siete)"]
[null,"Bankové spojenie: Tatra Banka, a.s., č. ú.: 2626106826/1100","odberatel@zsdis.sk, dodavatel@zsdis.sk, vyrobca@zsdis.sk, www.zsdis.sk"]

{"sheet":"Priloha","index":2,"n_rows":41,"n_cols":2,"rows_kept":41,"cut":false,"hidden":false,"merged":[]}
["Harmonogram funkčných skúšok"]
[]
[]
[]
[]
[]
[]
[]
[]
[]
[]
[]
[null," Zodpovedná osoba za kontrolu a prevzatie podkladov pre zakreslenie do SCADA*"]
[]
[]
[]
[]
[]
[]
[]
[]
[]
[]
[]
[]
[]
[]
[]
[]
[]
[]
[]
[]
[]
[]
[]
[]
[]
[]
[]
[null,"*v zastúpení môže podpísať aj priamy vedúci"]